lending/lending_fUSD_20240610
["ID","MTS","AMOUNT","RATE_DAILY","PERIOD"]
[328931875,1718004661482,-1202.12,0.00029041,4]
[328931876,1718004661492,-500.0,0.00029041,4]
[328931877,1718004661503,-500.0,0.00029041,4]
[328931878,1718004661512,-1202.12,0.00029041,4]
[328931879,1718004661522,-500.0,0.00029041,4]
[328931880,1718004661531,-500.0,0.00029041,4]
[328931881,1718004661540,-509.06257302,0.00029041,4]
[328931882,1718004661550,-500.0,0.00029041,4]
[328931883,1718004661560,-500.0,0.00029041,4]
[328931884,1718004661570,-500.0,0.00029041,4]
[328931885,1718004661581,-500.0,0.00029041,4]
[328931886,1718004661590,-500.0,0.00029041,4]
[328931887,1718004661601,-500.0,0.00029041,4]
[328931888,1718004661611,-500.0,0.00029041,4]
[328931889,1718004661621,-500.0,0.00029041,4]
[328931890,1718004661631,-500.0,0.00029041,4]
[328931891,1718004661641,-500.0,0.00029041,4]
[328931892,1718004661650,-564.98364776,0.00029041,4]
[328931893,1718004661660,-500.0,0.00029041,4]
[328931894,1718004661670,-500.0,0.00029041,4]
[328931895,1718004661680,-526.81578669,0.00029041,4]
[328931896,1718004661690,-500.0,0.00029041,4]
[328931897,1718004661700,-500.0,0.00029041,4]
[328931898,1718004661710,-500.0,0.00029041,4]
[328931899,1718004661720,-500.0,0.00029041,4]
[328931900,1718004661730,-220.61679406,0.00029041,4]
[328931901,1718004661740,-500.0,0.00029041,4]
[328931902,1718004661749,-500.0,0.00029041,4]
[328931903,1718004661759,-500.0,0.00029041,4]
[328931904,1718004661769,-500.0,0.00029041,4]
[328931905,1718004661779,-490.8636767,0.00029041,4]
[328931906,1718004661789,-531.87,0.00029041,4]
[328931907,1718004661799,-216.82803441,0.00029041,4]
[328931908,1718004661809,-531.87,0.00029041,4]
[328931909,1718004661820,-531.87,0.00029041,4]
[328931910,1718004661830,-531.87,0.00029041,4]
[328931911,1718004661841,-531.87,0.00029041,4]
[328931912,1718004661851,-531.87,0.00029041,4]
[328931913,1718004661862,-531.87,0.00029041,4]
[328931914,1718004661871,-531.87,0.00029041,4]
[328931915,1718004661881,-500.0,0.00029041,4]
[328931916,1718004661891,-531.87,0.00029041,4]
[328931917,1718004661901,-500.0,0.00029041,4]
[328931918,1718004661911,-500.0,0.00029041,4]
[328931919,1718004661921,-500.0,0.00029041,4]
[328931920,1718004661931,-903.04,0.00029041,4]
[328931921,1718004661941,-500.0,0.00029041,4]
[328931922,1718004661951,-500.0,0.00029041,4]
[328931923,1718004661961,-903.04,0.00029041,4]
[328931924,1718004661971,-500.0,0.00029041,4]
[328931925,1718004661981,-576.93778342,0.00029041,4]
[328931926,1718004661991,-500.0,0.00029041,4]
[328931927,1718004662001,-903.04,0.00029041,4]
[328931928,1718004662011,-500.0,0.00029041,4]
[328931929,1718004662020,-500.0,0.00029041,4]
[328931930,1718004662030,-903.04,0.00029041,4]
[328931931,1718004662040,-500.0,0.00029041,4]
[328931932,1718004662050,-500.0,0.00029041,4]
[328931933,1718004662060,-500.0,0.00029041,4]
[328931934,1718004662070,-500.0,0.00029041,4]
[328931935,1718004662080,-500.0,0.00029041,4]
[328931936,1718004662090,-903.04,0.00029041,4]
[328931937,1718004662102,-500.0,0.00029041,4]
[328931938,1718004662112,-3025.92,0.00029041,4]
[328931939,1718004662122,-903.04,0.00029041,4]
[328931940,1718004662131,-500.0,0.00029041,4]
[328931941,1718004662141,-414.66060933,0.00029041,4]
[328931942,1718004771977,-200.02276,0.00012714,2]
[328931943,1718004773645,-200.02276,0.00012714,2]
[328931945,1718004896736,9296.32922779,0.0003,120]
[328931946,1718004921597,-542.8956905,0.00012708,2]
[328931947,1718004921622,-155.0,0.00012709,2]
[328931948,1718004921648,-1302.1043095,0.00012709,2]
[328931949,1718004930977,-1034.68244698,0.00012709,2]
[328931950,1718004931001,-150.0,0.00012713,2]
[328931951,1718004931027,-150.0,0.00012713,2]
[328931952,1718004931055,-300.0,0.00012713,2]
[328931953,1718004931081,-365.31755302,0.00012714,2]
[328931954,1718004940190,-2000.0,0.00012714,2]
[328931955,1718004953903,-8917.21372698,0.00012714,2]
[328931956,1718004953929,-180.69395492,0.00012714,2]
[328931957,1718004953954,-1044.72685113,0.00012714,2]
[328931958,1718004953978,-289.8457628,0.00012714,2]
[328931959,1718004954003,-19769.39955785,0.00012714,2]
[328931960,1718004954027,-157.55609902,0.00012714,2]
[328931961,1718004954054,-218.76919722,0.00012714,2]
[328931962,1718005034894,154.45341886,0.00025786,30]
[328931963,1718005216051,-490.31169627,0.00012511,2]
[328931964,1718005218481,-46.06265347,0.00012511,2]
[328931965,1718005220646,400.0,0.0001251,2]
[328931966,1718005220684,44.2490428,0.0001251,2]
[328931967,1718005346822,177.19,0.0001106,2]
[328931968,1718005402795,4760.11205541,0.0001106,2]
[328931969,1718005406183,180.69395492,0.0001106,2]
[328931970,1718005416795,1387.464949,0.0001106,2]
[328931971,1718005422077,181.78232303,0.0001106,2]
[328931972,1718005451510,2618.93,0.0003,120]
[328931974,1718005573561,-999.99174,0.00012192,2]
[328931975,1718005574168,-999.99174,0.00012192,2]
[328931976,1718005591227,-400.0,0.00012191,2]
[328931977,1718005591251,-436.61426308,0.00012191,2]
[328931978,1718005591275,-3583.4591125,0.00012192,2]
[328931979,1718005591298,-886.11139158,0.00012193,2]
[328931980,1718005591320,-1102.0,0.00012193,2]
[328931981,1718005591342,-291.46111713,0.00012194,2]
[328931982,1718005591364,-295.83967052,0.00012194,2]
[328931983,1718005591398,-155.0,0.00012195,2]
[328931984,1718005591425,-2336.78675648,0.00012195,2]
[328931985,1718005591448,-358.86237888,0.00012197,2]
[328931986,1718005591473,-150.0,0.00012274,2]
[328931987,1718005591498,-150.0,0.00012299,2]
[328931988,1718005591522,-191.22,0.00012402,2]
[328931989,1718005591547,-1909.0446,0.00012612,2]
[328931990,1718005591571,-350.43098329,0.00012714,2]
[328931991,1718005591596,-181.5,0.0001285,2]
[328931992,1718005591622,-210.0,0.00013529,2]
[328931993,1718005591650,-886.44270801,0.000139,2]
[328931994,1718005591677,-757.34625938,0.000139,2]
[328931995,1718005591703,-857.7781023,0.00013981,2]
[328931996,1718005591730,-1255.73612344,0.00013981,2]
[328931997,1718005591755,-208.66770741,0.00013981,2]
[328931998,1718005591783,-153.51,0.0001399,2]
[328931999,1718005591807,-274.89751879,0.00013998,2]
[328932000,1718005591836,-246.78969473,0.00013998,2]
[328932001,1718005591862,-156.10634162,0.00013998,2]
[328932002,1718005591888,-285.24365879,0.00013998,2]
[328932003,1718005591912,-155.0,0.00013998,2]
[328932004,1718005591936,-155.0,0.00013998,2]
[328932005,1718005591962,-1190.48657198,0.00013998,2]
[328932006,1718005591989,-156.67264725,0.00013998,2]
[328932007,1718005592014,-689.62503831,0.00013998,2]
[328932008,1718005592039,-1427.04327615,0.00013998,2]
[328932009,1718005592064,-3358.32320364,0.00013998,2]
[328932010,1718005592091,-3075.90590176,0.00013998,2]
[328932011,1718005592114,-1801.29,0.00013999,2]
[328932012,1718005592146,-52654.3565407,0.00014,2]
[328932013,1718005603693,-150.0,0.00014,2]
[328932014,1718005627121,-328.85679329,0.00013981,2]
[328932015,1718005627143,-476.76411408,0.00013998,2]
[328932016,1718005627169,-155.0,0.00013998,2]
[328932017,1718005627194,-295.83967052,0.00013999,2]
[328932018,1718005627217,-1149.30744744,0.00013999,2]
[328932019,1718005627239,-302.99853243,0.00013999,2]
[328932020,1718005627262,-1013.44030979,0.00013999,2]
[328932021,1718005627284,-1527.91472772,0.00013999,2]
[328932022,1718005627307,-46.05113965,0.00013999,2]
[328932023,1718005634186,-156.52497244,0.00013999,2]
[328932024,1718005650121,-446.65237597,0.00013998,2]
[328932025,1718005650144,-197.42388791,0.00013999,2]
[328932026,1718005650174,-16599.05566192,0.00014,2]
[328932036,1718005832557,-422.05837041,0.000139,2]
[328932037,1718005832569,-351.56071379,0.000139,2]
[328932038,1718005832757,-6058.1576158,0.000139,2]
[328932039,1718005832767,-155.77896065,0.00013981,2]
[328932040,1718005832777,-188.80861575,0.00013981,2]
[328932041,1718005832788,-798.78765944,0.00013981,2]
[328932042,1718005832798,-153.51,0.0001399,2]
[328932043,1718005832809,-358.36266665,0.00013999,2]
[328932044,1718005832819,-1064138.82383062,0.00014,2]
[328932045,1718005832833,-998.62518368,0.00014,2]
[328932046,1718005833009,-872.51976406,0.00014,2]
[328932047,1718005833022,-1390.19962003,0.00014,2]
[328932048,1718005833382,-457.29170079,0.00014,2]
[328932067,1718005838538,-125526.93625732,0.00014,2]
[328932068,1718005838549,-171.39067466,0.00014184,2]
[328932069,1718005838560,-328.85679329,0.00014184,2]
[328932070,1718005838570,-191.98,0.00014284,2]
[328932071,1718005838579,-6156.39,0.00014381,2]
[328932072,1718005838590,-258.3,0.00014471,2]
[328932073,1718005838601,-780.1,0.00014968,2]
[328932074,1718005838611,-886.44270794,0.00015355,2]
[328932075,1718005838620,-500.0,0.00015607,2]
[328932076,1718005838631,-2822.8,0.00015607,2]
[328932077,1718005838641,-798.78765942,0.00016255,2]
[328932078,1718005838651,-886.44270794,0.00016809,2]
[328932079,1718005838661,-780.1,0.00017707,2]
[328932080,1718005838671,-1000.0,0.00018187,2]
[328932081,1718005838681,-886.44270794,0.00018264,2]
[328932082,1718005838692,-798.78765942,0.00018529,2]
[328932083,1718005838702,-886.44270794,0.00019718,2]
[328932084,1718005838712,-258.3,0.0002026,2]
[328932085,1718005838722,-780.1,0.00020447,2]
[328932086,1718005838732,-1000.0,0.0002046,2]
[328932087,1718005838743,-798.78765942,0.00020803,2]
[328932088,1718005838758,-886.44270794,0.00021173,2]
[328932089,1718005838769,-209.52678916,0.00021744,2]
[328932090,1718005838779,-460.94,0.00021869,2]
[328932091,1718005838789,-155.21189114,0.00022199,2]
[328932092,1718005838801,-886.44270794,0.00022627,2]
[328932093,1718005838810,-1000.0,0.00022733,2]
[328932094,1718005838820,-798.78765942,0.00023078,2]
[328932095,1718005838831,-10982.75,0.00023739,2]
[328932096,1718005838840,-169.12,0.00023768,2]
[328932097,1718005838852,-200.0,0.00023818,2]
[328932098,1718005838861,-250.0,0.00023911,2]
[328932099,1718005838871,-886.44270794,0.00024082,2]
[328932100,1718005838880,-460.94,0.00024132,2]
[328932101,1718005838890,-161.57332439,0.00024798,2]
[328932102,1718005838900,-1000.0,0.00025007,2]
[328932103,1718005838910,-798.78765942,0.00025352,2]
[328932104,1718005838920,-886.44270794,0.00025536,2]
[328932105,1718005838929,-24084.93587898,0.00025786,2]
[328932106,1718005838939,-9297.91721804,0.00025786,2]
[328932107,1718005838949,-460.94,0.00026396,2]
[328932108,1718005838959,-155.44046622,0.00026565,2]
[328932109,1718005838969,-297.91032594,0.00026638,2]
[328932110,1718005838979,-200.0,0.00026737,2]
[328932111,1718005838989,-151.26070129,0.00026754,2]
[328932112,1718005838999,-155.01619505,0.00026869,2]
[328932113,1718005839009,-886.44270794,0.00026991,2]
[328932114,1718005839019,-81802.46542431,0.00027,2]
[328932115,1718005839029,-155.123,0.00027034,2]
[328932116,1718005839039,-1000.0,0.0002728,2]
[328932117,1718005839048,-157.6292984,0.00027583,2]
[328932118,1718005839058,-798.78765942,0.00027626,2]
[328932119,1718005839068,-151.0,0.00027963,4]
[328932120,1718005839078,-224.8860613,0.00028,2]
[328932121,1718005839088,-316.43361078,0.00028118,7]
[328932122,1718005839100,-162.37755123,0.00028132,2]
[328932123,1718005839110,-155.0,0.000284,2]
[328932124,1718005839120,-625.77511416,0.00028414,2]
[328932125,1718005839130,-886.44270794,0.00028445,2]
[328932126,1718005839140,-151.0,0.00028534,2]
[328932127,1718005839151,-155.06386358,0.00028614,2]
[328932128,1718005839160,-460.94,0.0002866,2]
[328932129,1718005839170,-1197.73334662,0.0002875,4]
[328932130,1718005839180,-3000.0,0.0002875,2]
[328932131,1718005839190,-284.90282473,0.0002876,2]
[328932132,1718005839200,-732.86152334,0.0002876,2]
[328932133,1718005839211,-150.0,0.00028773,2]
[328932134,1718005839222,-150.0,0.00028791,2]
[328932135,1718005839233,-150.0,0.00028805,2]
[328932136,1718005839244,-200.0,0.00028808,2]
[328932137,1718005839255,-500.0,0.00028808,2]
[328932138,1718005839265,-200.0,0.00028808,2]
[328932139,1718005839276,-150.0,0.0002881,2]
[328932140,1718005839286,-150.0,0.00028813,2]
[328932141,1718005839298,-150.0,0.00028818,2]
[328932142,1718005839308,-150.0,0.0002884,2]
[328932143,1718005839319,-150.0,0.00028858,2]
[328932144,1718005839329,-150.0,0.00028886,2]
[328932145,1718005839339,-150.0,0.00028894,2]
[328932146,1718005839352,-500.0,0.000289,2]
[328932147,1718005839362,-884.2601,0.000289,2]
[328932148,1718005839373,-150.0,0.00028908,2]
[328932149,1718005839383,-152.0,0.0002894,5]
[328932150,1718005839393,-22225.2198,0.00028941,2]
[328932151,1718005839403,-150.0,0.00028944,2]
[328932152,1718005839413,-150.0,0.00028948,2]
[328932153,1718005839426,-150.0,0.00028958,2]
[328932154,1718005839436,-150.0,0.00028967,2]
[328932155,1718005839446,-150.0,0.00028976,2]
[328932156,1718005839456,-150.0,0.00028977,2]
[328932157,1718005839466,-216.25213631,0.00028992,2]
[328932158,1718005839476,-150.0,0.00028993,2]
[328932159,1718005839486,-150.0,0.00028993,2]
[328932160,1718005839496,-345.0,0.00029,2]
[328932161,1718005839506,-160.0,0.00029,2]
[328932162,1718005839516,-150.0,0.00029,6]
[328932163,1718005839526,-770.6161734,0.00029028,2]
[328932164,1718005839536,-251.0233345,0.00029028,2]
[328932165,1718005839546,-16137.5754273,0.00029028,2]
[328932166,1718005839557,-439.86188608,0.0002904,2]
[328932167,1718005839567,-73569.61158907,0.00029041,13]
[328932168,1718005839576,-351.74314286,0.00029041,2]
[328932169,1718005839586,-446.8178927,0.00029041,4]
[328932170,1718005839598,-471.45213442,0.00029041,4]
[328932171,1718005839608,-328.05374201,0.00029041,4]
[328932172,1718005839618,-500.0,0.00029041,4]
[328932173,1718005839628,-639.37781432,0.00029041,4]
[328932174,1718005839638,-500.0,0.00029041,4]
[328932175,1718005839648,-500.0,0.00029041,4]
[328932176,1718005839658,-500.0,0.00029041,4]
[328932177,1718005839669,-500.0,0.00029041,4]
[328932178,1718005839679,-500.0,0.00029041,4]
[328932179,1718005839689,-500.0,0.00029041,4]
[328932180,1718005839700,-466.79391668,0.00029041,4]
[328932181,1718005839710,-500.0,0.00029041,4]
[328932182,1718005839720,-500.0,0.00029041,4]
[328932183,1718005839730,-500.0,0.00029041,4]
[328932184,1718005839741,-500.0,0.00029041,4]
[328932185,1718005839753,-500.0,0.00029041,4]
[328932186,1718005839764,-500.0,0.00029041,4]
[328932187,1718005839776,-185.90340499,0.00029041,4]
[328932188,1718005839786,-304.18938168,0.00029041,4]
[328932189,1718005839797,-338.34404605,0.00029041,4]
[328932190,1718005839808,-500.0,0.00029041,4]
[328932191,1718005839820,-500.0,0.00029041,4]
[328932192,1718005839832,-500.0,0.00029041,4]
[328932193,1718005839844,-588.82147827,0.00029041,4]
[328932194,1718005839854,-500.0,0.00029041,4]
[328932195,1718005839865,-586.83913641,0.00029041,4]
[328932196,1718005839875,-500.0,0.00029041,4]
[328932197,1718005839886,-500.0,0.00029041,4]
[328932198,1718005839896,-357.8101128,0.00029041,4]
[328932199,1718005839906,-559.92222699,0.00029041,4]
[328932200,1718005839917,-500.0,0.00029041,4]
[328932201,1718005839928,-500.0,0.00029041,4]
[328932202,1718005839939,-526.38061228,0.00029041,4]
[328932203,1718005839949,-360.33905149,0.00029041,4]
[328932204,1718005839959,-500.0,0.00029041,4]
[328932205,1718005839970,-619.6387338,0.00029041,4]
[328932206,1718005839980,-500.0,0.00029041,4]
[328932207,1718005839990,-500.0,0.00029041,4]
[328932208,1718005840001,-383.41822325,0.00029041,4]
[328932209,1718005840019,-116.58177675,0.00029041,4]
[328932210,1718005840029,-500.0,0.00029041,4]
[328932211,1718005840039,-500.0,0.00029041,4]
[328932212,1718005840050,-500.0,0.00029041,4]
[328932213,1718005840060,-500.0,0.00029041,4]
[328932214,1718005840070,-500.0,0.00029041,4]
[328932215,1718005840083,-500.0,0.00029041,4]
[328932216,1718005840094,-500.0,0.00029041,4]
[328932217,1718005840104,-500.0,0.00029041,4]
[328932218,1718005840115,-181.14984018,0.00029041,4]
[328932219,1718005840125,-383.41867704,0.00029041,4]
[328932220,1718005840136,-584.95785836,0.00029041,4]
[328932221,1718005840147,-356.79300688,0.00029041,4]
[328932222,1718005840157,-500.0,0.00029041,4]
[328932223,1718005840167,-500.0,0.00029041,4]
[328932224,1718005840178,-303.94470994,0.00029041,4]
[328932225,1718005840192,-239.67106314,0.00029041,4]
[328932226,1718005840202,-500.0,0.00029041,4]
[328932227,1718005840213,-222.20129633,0.00029041,4]
[328932228,1718005840223,-500.0,0.00029041,4]
[328932229,1718005840233,-500.0,0.00029041,4]
[328932230,1718005840244,-500.0,0.00029041,4]
[328932231,1718005840254,-500.0,0.00029041,4]
[328932232,1718005840264,-313.16512629,0.00029041,4]
[328932233,1718005840274,-500.0,0.00029041,4]
[328932234,1718005840285,-500.0,0.00029041,4]
[328932235,1718005840295,-500.0,0.00029041,4]
[328932236,1718005840305,-500.0,0.00029041,4]
[328932237,1718005840315,-500.0,0.00029041,4]
[328932238,1718005840326,-245.00679319,0.00029041,4]
[328932239,1718005840335,-353.90625965,0.00029041,4]
[328932240,1718005840348,-500.0,0.00029041,4]
[328932241,1718005840358,-500.0,0.00029041,4]
[328932242,1718005840368,-500.0,0.00029041,4]
[328932243,1718005840379,-474.92772452,0.00029041,4]
[328932244,1718005840389,-500.0,0.00029041,4]
[328932245,1718005840399,-500.0,0.00029041,4]
[328932246,1718005840410,-500.0,0.00029041,4]
[328932247,1718005840420,-500.0,0.00029041,4]
[328932248,1718005840431,-500.0,0.00029041,4]
[328932249,1718005840441,-500.0,0.00029041,4]
[328932250,1718005840452,-500.0,0.00029041,4]
[328932251,1718005840463,-500.0,0.00029041,4]
[328932252,1718005840473,-500.0,0.00029041,4]
[328932253,1718005840484,-500.0,0.00029041,4]
[328932254,1718005840494,-500.0,0.00029041,4]
[328932255,1718005840505,-500.0,0.00029041,4]
[328932256,1718005840515,-500.0,0.00029041,4]
[328932257,1718005840526,-500.0,0.00029041,4]
[328932258,1718005840536,-500.0,0.00029041,4]
[328932259,1718005840547,-500.0,0.00029041,4]
[328932260,1718005840557,-500.0,0.00029041,4]
[328932261,1718005840567,-500.0,0.00029041,4]
[328932262,1718005840578,-500.0,0.00029041,4]
[328932263,1718005840588,-500.0,0.00029041,4]
[328932264,1718005840601,-505.08,0.00029041,4]
[328932265,1718005840611,-500.0,0.00029041,4]
[328932266,1718005840622,-500.0,0.00029041,4]
[328932267,1718005840632,-516.01352579,0.00029041,4]
[328932268,1718005840642,-500.0,0.00029041,4]
[328932269,1718005840653,-507.42199895,0.00029041,4]
[328932270,1718005840664,-366.094373,0.00029041,4]
[328932271,1718005840674,-500.0,0.00029041,4]
[328932272,1718005840685,-288.85706632,0.00029041,4]
[328932273,1718005840695,-500.0,0.00029041,4]
[328932274,1718005840705,-500.0,0.00029041,4]
[328932275,1718005840715,-334.95673196,0.00029041,4]
[328932276,1718005840725,-500.0,0.00029041,4]
[328932277,1718005840735,-500.0,0.00029041,4]
[328932278,1718005840748,-500.0,0.00029041,4]
[328932279,1718005840759,-500.0,0.00029041,4]
[328932280,1718005840770,-500.0,0.00029041,4]
[328932281,1718005840780,-500.0,0.00029041,4]
[328932282,1718005840791,-420.77804086,0.00029041,4]
[328932283,1718005840809,-79.22195914,0.00029041,4]
[328932284,1718005840820,-466.79879246,0.00029041,4]
[328932285,1718005840834,-33.20120754,0.00029041,4]
[328932286,1718005840845,-254.92303359,0.00029041,4]
[328932287,1718005840856,-245.07696641,0.00029041,4]
[328932288,1718005840866,-113.22303359,0.00029041,4]
[328932289,1718005840878,-386.77696641,0.00029041,4]
[328932290,1718005840888,-126.14542634,0.00029041,4]
[328932291,1718005840900,-373.85457366,0.00029041,4]
[328932292,1718005840911,-114.27482634,0.00029041,4]
[328932293,1718005841603,-129.4223131,0.00029041,4]
[328932294,1718005841613,-500.0,0.00029041,4]
[328932295,1718005841623,-371.0936169,0.00029041,4]
[328932296,1718005841636,-128.9063831,0.00029041,4]
[328932297,1718005841645,-500.0,0.00029041,4]
[328932298,1718005841655,-276.45022263,0.00029041,4]
[328932299,1718005841666,-500.0,0.00029041,4]
[328932300,1718005841676,-500.0,0.00029041,4]
[328932301,1718005841687,-500.0,0.00029041,4]
[328932302,1718005841697,-500.0,0.00029041,4]
[328932303,1718005841707,-239.76350489,0.00029041,4]
[328932304,1718005841721,-260.23649511,0.00029041,4]
[328932305,1718005841731,-500.0,0.00029041,4]
[328932306,1718005841741,-500.0,0.00029041,4]
[328932307,1718005841754,-500.0,0.00029041,4]
[328932308,1718005841765,-500.0,0.00029041,4]
[328932309,1718005841775,-500.0,0.00029041,4]
[328932310,1718005841785,-500.0,0.00029041,4]
[328932311,1718005841797,-198.50703352,0.00029041,4]
[328932312,1718005841807,-500.0,0.00029041,4]
[328932313,1718005841818,-501.8,0.00029041,4]
[328932314,1718005841829,-500.0,0.00029041,4]
[328932315,1718005841840,-500.0,0.00029041,4]
[328932316,1718005841852,-500.0,0.00029041,4]
[328932317,1718005841863,-350.52652243,0.00029041,4]
[328932318,1718005841873,-247.93310669,0.00029041,4]
[328932319,1718005841884,-500.0,0.00029041,4]
[328932320,1718005841894,-500.0,0.00029041,4]
[328932321,1718005841905,-500.0,0.00029041,4]
[328932322,1718005841916,-500.0,0.00029041,4]
[328932323,1718005841926,-500.0,0.00029041,4]
[328932324,1718005841937,-569.83945711,0.00029041,4]
[328932327,1718005841948,-500.0,0.00029041,4]
[328932329,1718005841959,-571.94304323,0.00029041,4]
[328932331,1718005841969,-500.0,0.00029041,4]
[328932333,1718005841979,-500.0,0.00029041,4]
[328932334,1718005841989,-500.0,0.00029041,4]
[328932336,1718005842000,-500.0,0.00029041,4]
[328932337,1718005842011,-500.0,0.00029041,4]
[328932338,1718005842021,-500.0,0.00029041,4]
[328932339,1718005842032,-140.74198263,0.00029041,4]
[328932340,1718005842067,-351.88950886,0.0002904,2]
[328932341,1718005842077,-359.25801737,0.00029041,4]
[328932342,1718005842087,-500.0,0.00029041,4]
[328932343,1718005842099,-500.0,0.00029041,4]
[328932344,1718005842109,-500.0,0.00029041,4]
[328932345,1718005842120,-500.0,0.00029041,4]
[328932346,1718005842131,-471.52885925,0.00029041,4]
[328932347,1718005842142,-500.0,0.00029041,4]
[328932348,1718005842152,-500.0,0.00029041,4]
[328932349,1718005842163,-500.0,0.00029041,4]
[328932350,1718005842174,-520.53522849,0.00029041,4]
[328932351,1718005842185,-553.46331421,0.00029041,4]
[328932352,1718005842196,-500.0,0.00029041,4]
[328932353,1718005842207,-546.78687579,0.00029041,4]
[328932354,1718005842222,-500.0,0.00029041,4]
[328932355,1718005842232,-506.99374182,0.00029041,4]
[328932356,1718005842242,-500.0,0.00029041,4]
[328932357,1718005842253,-558.74844365,0.00029041,4]
[328932358,1718005842263,-500.0,0.00029041,4]
[328932359,1718005842274,-587.88439251,0.00029041,4]
[328932360,1718005842284,-500.0,0.00029041,4]
[328932363,1718005842295,-500.0,0.00029041,4]
[328932365,1718005842305,-556.28556903,0.00029041,4]
[328932366,1718005842316,-500.0,0.00029041,4]
[328932367,1718005842326,-500.0,0.00029041,4]
[328932368,1718005842337,-92.50164008,0.00029041,4]
[328932370,1718005842613,-407.49835992,0.00029041,4]
[328932371,1718005842623,-500.0,0.00029041,4]
[328932372,1718005842634,-500.0,0.00029041,4]
[328932373,1718005842644,-520.13366954,0.00029041,4]
[328932374,1718005842654,-500.0,0.00029041,4]
[328932375,1718005842664,-324.90185404,0.00029041,4]
[328932376,1718005843021,-175.09814596,0.00029041,4]
[328932377,1718005843032,-500.0,0.00029041,4]
[328932378,1718005843043,-168.30185404,0.00029041,4]
[328932379,1718005843566,-274.733615,0.00029041,4]
[328932380,1718005844376,-56.96453096,0.00029041,4]
[328932381,1718005844387,-310.29453086,0.00029041,4]
[328932382,1718005844400,-189.70546914,0.00029041,4]
[328932383,1718005844410,-500.0,0.00029041,4]
[328932384,1718005844420,-538.01519146,0.00029041,4]
[328932385,1718005844430,-550.78499225,0.00029041,4]
[328932386,1718005844439,-500.0,0.00029041,4]
[328932387,1718005844449,-151.059375,0.00029041,4]
[328932388,1718005844458,-500.0,0.00029041,4]
[328932389,1718005844468,-500.0,0.00029041,4]
[328932390,1718005844477,-500.0,0.00029041,4]
[328932391,1718005844488,-500.0,0.00029041,4]
[328932392,1718005844498,-500.0,0.00029041,4]
[328932393,1718005844508,-500.0,0.00029041,4]
[328932394,1718005844518,-500.0,0.00029041,4]
[328932395,1718005844528,-521.59256953,0.00029041,4]
[328932396,1718005844537,-500.0,0.00029041,4]
[328932397,1718005844547,-9.1471944,0.00029041,4]
[328932398,1718005844560,-490.8528056,0.00029041,4]
[328932399,1718005844570,-536.90135682,0.00029041,4]
[328932400,1718005844580,-270.83325406,0.00029041,4]
[328932401,1718005844590,-500.0,0.00029041,4]
[328932402,1718005844601,-500.0,0.00029041,4]
[328932403,1718005844611,-500.0,0.00029041,4]
[328932404,1718005844620,-500.0,0.00029041,4]
[328932405,1718005844629,-500.0,0.00029041,4]
[328932406,1718005844638,-500.0,0.00029041,4]
[328932407,1718005844647,-500.0,0.00029041,4]
[328932408,1718005844657,-500.0,0.00029041,4]
[328932409,1718005844667,-500.0,0.00029041,4]
[328932410,1718005844677,-288.89636322,0.00029041,4]
[328932411,1718005844691,-312.27519333,0.00029041,4]
[328932412,1718005844700,-500.0,0.00029041,4]
[328932413,1718005844710,-500.0,0.00029041,4]